[Event "Titled Tuesday Blitz February 01 B 2022"]
[White "Sarkar, Justin"]
[Black "Erigaisi Arjun"]
[WhiteFideId "2010011"]
[BlackFideId "35009192"]
[WhiteElo "2038"]
[BlackElo "2745"]
[Result "0-1"]
[Round "03"]
[TimeControl "180+1"]
[Date "2022.02.01"]
[WhiteClock "0:00:11"]
[BlackClock "0:02:27"]

1. d4 {[%clk 0:03:00]}  e6 {[%clk 0:02:59]} 2. e4 {[%clk 0:02:53]}  d5 {[%clk 0:02:59]} 3. e5 {[%clk 0:02:52]}  c5 {[%clk 0:02:59]} 4. c3 {[%clk 0:02:51]}  Nc6 {[%clk 0:03:00]} 5. Be3 {[%clk 0:02:50]}  Qb6 {[%clk 0:02:57]} 6. Qd2 {[%clk 0:02:50]}  Nh6 {[%clk 0:02:55]} 7. Bd3 {[%clk 0:02:47]}  Ng4 {[%clk 0:02:52]} 8. Nf3 {[%clk 0:02:41]}  c4 {[%clk 0:02:48]} 9. Be2 {[%clk 0:02:37]}  Nxe3 {[%clk 0:02:49]} 10. fxe3 {[%clk 0:02:37]}  Qc7 {[%clk 0:02:49]} 11. b3 {[%clk 0:02:22]}  b5 {[%clk 0:02:44]} 12. a4 {[%clk 0:02:19]}  Na5 {[%clk 0:02:44]} 13. Bd1 {[%clk 0:01:39]}  cxb3 {[%clk 0:02:44]} 14. axb5 {[%clk 0:01:37]}  Nc4 {[%clk 0:02:44]} 15. Qe2 {[%clk 0:01:24]}  b2 {[%clk 0:02:42]} 16. Ra2 {[%clk 0:01:22]}  Bd7 {[%clk 0:02:42]} 17. Ba4 {[%clk 0:01:16]}  Be7 {[%clk 0:02:39]} 18. O-O {[%clk 0:01:16]}  O-O {[%clk 0:02:39]} 19. Nbd2 {[%clk 0:01:14]}  Nb6 {[%clk 0:02:35]} 20. Bc2 {[%clk 0:00:38]}  Qxc3 {[%clk 0:02:32]} 21. Nb1 {[%clk 0:00:36]}  Qc4 {[%clk 0:02:28]} 22. Qxc4 {[%clk 0:00:11]}  Nxc4 {[%clk 0:02:29]} 23. e4 {[%clk 0:00:11]}  Ne3 {[%clk 0:02:27]} 0-1


[Site "https://www.chess.com"]

[Event "Titled Tuesday Blitz February 01 B 2022"]
[White "Suarez Uriel, Adrian"]
[Black "Kravtsiv, Martyn"]
[WhiteFideId "22230874"]
[BlackFideId "14113147"]
[WhiteElo "2316"]
[BlackElo "2694"]
[Result "0-1"]
[Round "03"]
[TimeControl "180+1"]
[Date "2022.02.01"]
[WhiteClock "0:00:18"]
[BlackClock "0:00:22"]

1. e4 {[%clk 0:03:00]}  e5 {[%clk 0:02:59]} 2. Nf3 {[%clk 0:03:00]}  Nc6 {[%clk 0:03:00]} 3. Bc4 {[%clk 0:03:01]}  Nf6 {[%clk 0:02:59]} 4. d3 {[%clk 0:03:01]}  Bc5 {[%clk 0:02:56]} 5. O-O {[%clk 0:03:01]}  O-O {[%clk 0:02:56]} 6. h3 {[%clk 0:02:59]}  d5 {[%clk 0:02:54]} 7. exd5 {[%clk 0:02:58]}  Nxd5 {[%clk 0:02:54]} 8. Re1 {[%clk 0:02:59]}  Be6 {[%clk 0:02:54]} 9. Nbd2 {[%clk 0:02:59]}  f6 {[%clk 0:02:44]} 10. Ne4 {[%clk 0:02:54]}  Bb6 {[%clk 0:02:42]} 11. Ng3 {[%clk 0:02:53]}  Qd7 {[%clk 0:02:31]} 12. a4 {[%clk 0:02:50]}  Kh8 {[%clk 0:02:27]} 13. Bd2 {[%clk 0:02:47]}  a6 {[%clk 0:02:23]} 14. Qe2 {[%clk 0:02:44]}  Rae8 {[%clk 0:02:22]} 15. Rad1 {[%clk 0:02:32]}  Bg8 {[%clk 0:02:11]} 16. Qe4 {[%clk 0:02:30]}  Nce7 {[%clk 0:01:39]} 17. a5 {[%clk 0:02:25]}  Ba7 {[%clk 0:01:37]} 18. Bb3 {[%clk 0:02:15]}  c6 {[%clk 0:01:35]} 19. Nh4 {[%clk 0:01:21]}  Bb8 {[%clk 0:01:26]} 20. Nhf5 {[%clk 0:01:19]}  Nxf5 {[%clk 0:01:21]} 21. Qxf5 {[%clk 0:01:19]}  Be6 {[%clk 0:01:19]} 22. Qh5 {[%clk 0:01:18]}  Bc7 {[%clk 0:01:15]} 23. Ne4 {[%clk 0:01:14]}  Qd8 {[%clk 0:01:11]} 24. Nc5 {[%clk 0:01:10]}  Bc8 {[%clk 0:01:11]} 25. Re4 {[%clk 0:00:57]}  Re7 {[%clk 0:00:57]} 26. Rh4 {[%clk 0:00:56]}  g6 {[%clk 0:00:57]} 27. Qxg6 {[%clk 0:00:52]}  Rg7 {[%clk 0:00:49]} 28. Qe4 {[%clk 0:00:51]}  f5 {[%clk 0:00:45]} 29. Qa4 {[%clk 0:00:51]}  f4 {[%clk 0:00:45]} 30. Rh5 {[%clk 0:00:40]}  Rfg8 {[%clk 0:00:40]} 31. Qe4 {[%clk 0:00:37]}  Nf6 {[%clk 0:00:39]} 32. Qf3 {[%clk 0:00:28]}  Rxg2+ {[%clk 0:00:36]} 33. Kh1 {[%clk 0:00:26]}  R8g6 {[%clk 0:00:29]} 34. Bc3 {[%clk 0:00:21]}  Nxh5 {[%clk 0:00:23]} 35. Qxh5 {[%clk 0:00:20]}  Qg5 {[%clk 0:00:22]} 36. Qxg5 {[%clk 0:00:19]}  R2xg5 {[%clk 0:00:22]} 37. Re1 {[%clk 0:00:18]}  Rh5 {[%clk 0:00:22]} 0-1


[Site "https://www.chess.com"]

[Event "Titled Tuesday Blitz February 01 B 2022"]
[White "Svane, Frederik"]
[Black "Naroditsky, Daniel"]
[WhiteFideId "12923044"]
[BlackFideId "2026961"]
[WhiteElo "2459"]
[BlackElo "2608"]
[Result "1-0"]
[Round "03"]
[TimeControl "180+1"]
[Date "2022.02.01"]
[WhiteClock "0:00:13"]
[BlackClock "0:00:03"]

1. e4 {[%clk 0:03:00]}  e5 {[%clk 0:03:00]} 2. Nf3 {[%clk 0:03:01]}  Nc6 {[%clk 0:02:58]} 3. Bb5 {[%clk 0:03:01]}  a6 {[%clk 0:02:59]} 4. Ba4 {[%clk 0:03:02]}  d6 {[%clk 0:02:59]} 5. O-O {[%clk 0:03:01]}  Bd7 {[%clk 0:02:59]} 6. c4 {[%clk 0:02:56]}  g6 {[%clk 0:02:53]} 7. d4 {[%clk 0:02:52]}  exd4 {[%clk 0:02:43]} 8. Bxc6 {[%clk 0:02:41]}  bxc6 {[%clk 0:02:36]} 9. Qxd4 {[%clk 0:02:37]}  Qf6 {[%clk 0:02:37]} 10. e5 {[%clk 0:02:24]}  dxe5 {[%clk 0:02:30]} 11. Re1 {[%clk 0:02:19]}  Be6 {[%clk 0:01:46]} 12. Nxe5 {[%clk 0:01:55]}  Bg7 {[%clk 0:01:47]} 13. Qc5 {[%clk 0:01:48]}  Ne7 {[%clk 0:01:28]} 14. Nxc6 {[%clk 0:01:48]}  Nf5 {[%clk 0:01:10]} 15. Nc3 {[%clk 0:01:26]}  Kd7 {[%clk 0:01:10]} 16. Nd5 {[%clk 0:01:17]}  Bxd5 {[%clk 0:01:01]} 17. Qxd5+ {[%clk 0:01:18]}  Qd6 {[%clk 0:00:58]} 18. Qxf7+ {[%clk 0:01:12]}  Kc8 {[%clk 0:00:58]} 19. Ne7+ {[%clk 0:00:54]}  Nxe7 {[%clk 0:00:49]} 20. Qxg7 {[%clk 0:00:39]}  Kb7 {[%clk 0:00:41]} 21. c5 {[%clk 0:00:29]}  Qd3 {[%clk 0:00:11]} 22. Qxe7 {[%clk 0:00:22]}  Rae8 {[%clk 0:00:05]} 23. c6+ {[%clk 0:00:22]}  Kxc6 {[%clk 0:00:02]} 24. Qf6+ {[%clk 0:00:21]}  Kb7 {[%clk 0:00:02]} 25. Bf4 {[%clk 0:00:20]}  Rhf8 {[%clk 0:00:02]} 26. Qg5 {[%clk 0:00:16]}  Rf5 {[%clk 0:00:03]} 27. Qg3 {[%clk 0:00:15]}  Qd7 {[%clk 0:00:03]} 28. Rec1 {[%clk 0:00:14]}  c6 {[%clk 0:00:03]} 29. Be3 {[%clk 0:00:14]}  Rd5 {[%clk 0:00:03]} 30. h3 {[%clk 0:00:14]}  h5 {[%clk 0:00:03]} 31. Qf3 {[%clk 0:00:15]}  Re6 {[%clk 0:00:03]} 32. Rc3 {[%clk 0:00:15]}  g5 {[%clk 0:00:04]} 33. Rb3+ {[%clk 0:00:15]}  Kc7 {[%clk 0:00:04]} 34. Rc1 {[%clk 0:00:15]}  g4 {[%clk 0:00:04]} 35. Qf4+ {[%clk 0:00:15]}  Kd8 {[%clk 0:00:04]} 36. Qf8+ {[%clk 0:00:14]}  Re8 {[%clk 0:00:05]} 37. Bb6+ {[%clk 0:00:14]}  Kc8 {[%clk 0:00:05]} 38. Qf4 {[%clk 0:00:14]}  gxh3 {[%clk 0:00:03]} 39. Rxh3 {[%clk 0:00:14]}  Re6 {[%clk 0:00:02]} 40. Rhc3 {[%clk 0:00:14]}  Rd1+ {[%clk 0:00:02]} 41. Rxd1 {[%clk 0:00:14]}  Qxd1+ {[%clk 0:00:03]} 42. Kh2 {[%clk 0:00:15]}  Qd7 {[%clk 0:00:04]} 43. Re3 {[%clk 0:00:12]}  Kb7 {[%clk 0:00:03]} 44. Rxe6 {[%clk 0:00:13]}  Qxe6 {[%clk 0:00:03]} 45. Qc7+ {[%clk 0:00:13]} 1-0


[Site "https://www.chess.com"]

[Event "Titled Tuesday Blitz February 01 B 2022"]
[White "Sviridov, Valery"]
[Black "Gledura, Benjamin"]
[WhiteFideId "4120680"]
[BlackFideId "712779"]
[WhiteElo "2454"]
[BlackElo "2326"]
[Result "1/2-1/2"]
[Round "03"]
[TimeControl "180+1"]
[Date "2022.02.01"]
[WhiteClock "0:00:29"]
[BlackClock "0:00:15"]

1. Nf3 {[%clk 0:03:00]}  Nf6 {[%clk 0:02:59]} 2. g3 {[%clk 0:03:00]}  g6 {[%clk 0:03:00]} 3. Bg2 {[%clk 0:03:01]}  Bg7 {[%clk 0:03:00]} 4. O-O {[%clk 0:03:02]}  O-O {[%clk 0:03:01]} 5. c4 {[%clk 0:03:02]}  c6 {[%clk 0:02:58]} 6. Nc3 {[%clk 0:03:02]}  d5 {[%clk 0:02:59]} 7. cxd5 {[%clk 0:03:03]}  cxd5 {[%clk 0:02:59]} 8. d4 {[%clk 0:03:03]}  Ne4 {[%clk 0:03:00]} 9. Ng5 {[%clk 0:03:02]}  Nxc3 {[%clk 0:02:44]} 10. bxc3 {[%clk 0:03:02]}  Nc6 {[%clk 0:02:45]} 11. e4 {[%clk 0:03:02]}  dxe4 {[%clk 0:02:45]} 12. Re1 {[%clk 0:03:03]}  Bf5 {[%clk 0:02:34]} 13. h4 {[%clk 0:03:01]}  Rc8 {[%clk 0:02:33]} 14. Nxe4 {[%clk 0:02:58]}  Na5 {[%clk 0:02:32]} 15. Bd2 {[%clk 0:02:53]}  Nc4 {[%clk 0:02:31]} 16. Bg5 {[%clk 0:02:50]}  Re8 {[%clk 0:02:27]} 17. Qa4 {[%clk 0:02:46]}  Qa5 {[%clk 0:02:22]} 18. Qb3 {[%clk 0:02:43]}  h6 {[%clk 0:02:10]} 19. Bf4 {[%clk 0:02:31]}  b6 {[%clk 0:02:04]} 20. Rac1 {[%clk 0:02:14]}  Bxe4 {[%clk 0:01:53]} 21. Bxe4 {[%clk 0:02:13]}  e6 {[%clk 0:01:51]} 22. Bd3 {[%clk 0:02:10]}  Qd5 {[%clk 0:01:50]} 23. Be4 {[%clk 0:02:03]}  Qd7 {[%clk 0:01:48]} 24. Rcd1 {[%clk 0:01:59]}  Nd6 {[%clk 0:01:43]} 25. Bd3 {[%clk 0:01:58]}  Qc6 {[%clk 0:01:41]} 26. Ba6 {[%clk 0:01:55]}  Rcd8 {[%clk 0:01:28]} 27. a4 {[%clk 0:01:54]}  Qf3 {[%clk 0:01:04]} 28. Bf1 {[%clk 0:01:50]}  Nf5 {[%clk 0:00:46]} 29. Bg2 {[%clk 0:01:35]}  Qh5 {[%clk 0:00:46]} 30. Qb5 {[%clk 0:01:28]}  g5 {[%clk 0:00:42]} 31. hxg5 {[%clk 0:01:26]}  hxg5 {[%clk 0:00:43]} 32. Bc7 {[%clk 0:01:26]}  Rc8 {[%clk 0:00:43]} 33. a5 {[%clk 0:01:19]}  bxa5 {[%clk 0:00:41]} 34. Bxa5 {[%clk 0:01:20]}  Bf8 {[%clk 0:00:30]} 35. d5 {[%clk 0:01:12]}  Nd6 {[%clk 0:00:23]} 36. Qa6 {[%clk 0:01:02]}  e5 {[%clk 0:00:20]} 37. Bb4 {[%clk 0:01:00]}  Rcd8 {[%clk 0:00:17]} 38. Qxa7 {[%clk 0:00:59]}  Kg7 {[%clk 0:00:17]} 39. Qa6 {[%clk 0:00:53]}  Be7 {[%clk 0:00:15]} 40. Qe2 {[%clk 0:00:53]}  Qxe2 {[%clk 0:00:13]} 41. Rxe2 {[%clk 0:00:54]}  Nc4 {[%clk 0:00:13]} 42. Re4 {[%clk 0:00:35]}  Bxb4 {[%clk 0:00:13]} 43. Rxc4 {[%clk 0:00:35]}  Bd6 {[%clk 0:00:13]} 44. Be4 {[%clk 0:00:36]}  Rc8 {[%clk 0:00:13]} 45. Rc6 {[%clk 0:00:36]}  Red8 {[%clk 0:00:12]} 46. Kg2 {[%clk 0:00:31]}  Kf6 {[%clk 0:00:10]} 47. Kf3 {[%clk 0:00:27]}  Ke7 {[%clk 0:00:10]} 48. Kg4 {[%clk 0:00:24]}  Rxc6 {[%clk 0:00:08]} 49. dxc6 {[%clk 0:00:25]}  Bc5 {[%clk 0:00:08]} 50. Rxd8 {[%clk 0:00:19]}  Kxd8 {[%clk 0:00:08]} 51. f3 {[%clk 0:00:20]}  Bf2 {[%clk 0:00:06]} 52. Bd5 {[%clk 0:00:18]}  f6 {[%clk 0:00:05]} 53. Kh3 {[%clk 0:00:16]}  Kc7 {[%clk 0:00:05]} 54. Kg2 {[%clk 0:00:16]}  Be1 {[%clk 0:00:06]} 55. g4 {[%clk 0:00:14]}  Bxc3 {[%clk 0:00:05]} 56. Kf2 {[%clk 0:00:14]}  Bd2 {[%clk 0:00:03]} 57. Ke2 {[%clk 0:00:14]}  Bc3 {[%clk 0:00:03]} 58. Kd3 {[%clk 0:00:14]}  Bb2 {[%clk 0:00:03]} 59. Ke4 {[%clk 0:00:15]}  Bc1 {[%clk 0:00:03]} 60. Kf5 {[%clk 0:00:16]}  Bf4 {[%clk 0:00:03]} 61. Be4 {[%clk 0:00:16]}  Kd6 {[%clk 0:00:04]} 62. Kxf6 {[%clk 0:00:17]}  Kc7 {[%clk 0:00:04]} 63. Ke7 {[%clk 0:00:18]}  Bg3 {[%clk 0:00:05]} 64. Ke6 {[%clk 0:00:18]}  Bf4 {[%clk 0:00:05]} 65. Kf6 {[%clk 0:00:19]}  Kd6 {[%clk 0:00:05]} 66. Kf7 {[%clk 0:00:18]}  Kc7 {[%clk 0:00:06]} 67. Ke7 {[%clk 0:00:19]}  Bg3 {[%clk 0:00:06]} 68. Bd5 {[%clk 0:00:19]}  Bf4 {[%clk 0:00:07]} 69. Ke6 {[%clk 0:00:18]}  Bg3 {[%clk 0:00:07]} 70. Be4 {[%clk 0:00:19]}  Bf4 {[%clk 0:00:08]} 71. Kd5 {[%clk 0:00:19]}  Bg3 {[%clk 0:00:08]} 72. Bc2 {[%clk 0:00:20]}  Bf4 {[%clk 0:00:09]} 73. Ba4 {[%clk 0:00:21]}  Bg3 {[%clk 0:00:09]} 74. Ke4 {[%clk 0:00:22]}  Bf4 {[%clk 0:00:09]} 75. Kf5 {[%clk 0:00:23]}  Kd6 {[%clk 0:00:10]} 76. Kf6 {[%clk 0:00:23]}  Kc7 {[%clk 0:00:10]} 77. Ke7 {[%clk 0:00:23]}  Bg3 {[%clk 0:00:10]} 78. Ke6 {[%clk 0:00:24]}  Bf4 {[%clk 0:00:11]} 79. Kd5 {[%clk 0:00:25]}  Bg3 {[%clk 0:00:11]} 80. Bb5 {[%clk 0:00:25]}  Bf4 {[%clk 0:00:12]} 81. Ke4 {[%clk 0:00:26]}  Bg3 {[%clk 0:00:12]} 82. Kd5 {[%clk 0:00:26]}  Bf4 {[%clk 0:00:12]} 83. Ke6 {[%clk 0:00:27]}  Bg3 {[%clk 0:00:12]} 84. Kf6 {[%clk 0:00:27]}  Bf4 {[%clk 0:00:13]} 85. Ba4 {[%clk 0:00:28]}  Kd6 {[%clk 0:00:13]} 86. Kf7 {[%clk 0:00:24]}  Kc7 {[%clk 0:00:13]} 87. Ke6 {[%clk 0:00:23]}  Bg3 {[%clk 0:00:13]} 88. Bb5 {[%clk 0:00:22]}  Bf4 {[%clk 0:00:13]} 89. Ba4 {[%clk 0:00:22]}  Bg3 {[%clk 0:00:13]} 90. Bb3 {[%clk 0:00:19]}  Bf4 {[%clk 0:00:13]} 91. Bd5 {[%clk 0:00:19]}  Bg3 {[%clk 0:00:13]} 92. Kf6 {[%clk 0:00:20]}  Bf4 {[%clk 0:00:13]} 93. Kg6 {[%clk 0:00:21]}  Kd6 {[%clk 0:00:13]} 94. Be4 {[%clk 0:00:22]}  Kc7 {[%clk 0:00:14]} 95. Kh5 {[%clk 0:00:23]}  Be3 {[%clk 0:00:13]} 96. Kh6 {[%clk 0:00:23]}  Bf4 {[%clk 0:00:14]} 97. Kg7 {[%clk 0:00:24]}  Be3 {[%clk 0:00:14]} 98. Kh6 {[%clk 0:00:25]}  Bf4 {[%clk 0:00:14]} 99. Kg6 {[%clk 0:00:26]}  Be3 {[%clk 0:00:14]} 100. Kf6 {[%clk 0:00:27]}  Bf4 {[%clk 0:00:14]} 101. Ke6 {[%clk 0:00:27]}  Bg3 {[%clk 0:00:14]} 102. Kf5 {[%clk 0:00:28]}  Bf4 {[%clk 0:00:14]} 103. Ke6 {[%clk 0:00:29]}  Bg3 {[%clk 0:00:14]} 104. Bd5 {[%clk 0:00:29]}  Bf4 {[%clk 0:00:15]} 105. Be4 {[%clk 0:00:29]} 1/2-1/2


[Site "https://www.chess.com"]

[Event "Titled Tuesday Blitz February 01 B 2022"]
[White "Willow, Jonah B"]
[Black "Senthil Maran K"]
[WhiteFideId "438804"]
[BlackFideId "25035681"]
[WhiteElo "2261"]
[BlackElo "2194"]
[Result "0-1"]
[Round "03"]
[TimeControl "180+1"]
[Date "2022.02.01"]
[WhiteClock "0:00:47"]
[BlackClock "0:00:10"]

1. e4 {[%clk 0:03:00]}  c6 {[%clk 0:02:59]} 2. d4 {[%clk 0:03:01]}  d5 {[%clk 0:02:59]} 3. Nc3 {[%clk 0:03:01]}  dxe4 {[%clk 0:02:59]} 4. Nxe4 {[%clk 0:03:02]}  Bf5 {[%clk 0:02:59]} 5. Nc5 {[%clk 0:03:02]}  b6 {[%clk 0:02:59]} 6. Nb3 {[%clk 0:03:02]}  e6 {[%clk 0:02:59]} 7. Nf3 {[%clk 0:03:01]}  Nd7 {[%clk 0:02:58]} 8. g3 {[%clk 0:02:55]}  Rc8 {[%clk 0:02:57]} 9. Bg2 {[%clk 0:02:49]}  Ngf6 {[%clk 0:02:57]} 10. O-O {[%clk 0:02:47]}  h6 {[%clk 0:02:58]} 11. Re1 {[%clk 0:02:42]}  Be7 {[%clk 0:02:54]} 12. Qe2 {[%clk 0:02:32]}  O-O {[%clk 0:02:53]} 13. Ne5 {[%clk 0:02:32]}  Nxe5 {[%clk 0:02:44]} 14. dxe5 {[%clk 0:02:33]}  Nd5 {[%clk 0:02:14]} 15. a3 {[%clk 0:02:33]}  c5 {[%clk 0:02:10]} 16. h4 {[%clk 0:02:12]}  Qd7 {[%clk 0:01:34]} 17. Rd1 {[%clk 0:02:08]}  b5 {[%clk 0:01:34]} 18. Be3 {[%clk 0:02:00]}  Rfd8 {[%clk 0:01:31]} 19. Rd2 {[%clk 0:01:45]}  Qc7 {[%clk 0:01:25]} 20. Bxd5 {[%clk 0:01:23]}  exd5 {[%clk 0:00:52]} 21. Bf4 {[%clk 0:01:23]}  Qb7 {[%clk 0:00:41]} 22. g4 {[%clk 0:01:18]}  Be6 {[%clk 0:00:38]} 23. g5 {[%clk 0:01:18]}  hxg5 {[%clk 0:00:30]} 24. Bxg5 {[%clk 0:01:19]}  d4 {[%clk 0:00:26]} 25. Re1 {[%clk 0:01:14]}  Bxb3 {[%clk 0:00:11]} 26. cxb3 {[%clk 0:01:14]}  Bxg5 {[%clk 0:00:11]} 27. hxg5 {[%clk 0:01:15]}  Qd5 {[%clk 0:00:11]} 28. Rd3 {[%clk 0:01:09]}  c4 {[%clk 0:00:11]} 29. Rh3 {[%clk 0:01:09]}  g6 {[%clk 0:00:10]} 30. Re3 {[%clk 0:01:08]}  dxe3 {[%clk 0:00:10]} 31. Qxe3 {[%clk 0:00:54]}  Qd2 {[%clk 0:00:10]} 32. Qe4 {[%clk 0:00:53]}  Rd4 {[%clk 0:00:10]} 33. Qb1 {[%clk 0:00:49]}  Rg4+ {[%clk 0:00:10]} 34. Kf1 {[%clk 0:00:49]}  Qd3+ {[%clk 0:00:09]} 35. Qxd3 {[%clk 0:00:48]}  cxd3 {[%clk 0:00:10]} 36. Rd1 {[%clk 0:00:49]}  Rd4 {[%clk 0:00:10]} 37. Ke1 {[%clk 0:00:47]}  Rc2 {[%clk 0:00:10]} 0-1


[Site "https://www.chess.com"]

[Event "Titled Tuesday Blitz February 01 B 2022"]
[White "Blohberger, Felix"]
[Black "Yoo, Christopher Woojin"]
[WhiteFideId "1632051"]
[BlackFideId "30909694"]
[WhiteElo "2474"]
[BlackElo "2105"]
[Result "1/2-1/2"]
[Round "04"]
[TimeControl "180+1"]
[Date "2022.02.01"]
[WhiteClock "0:00:03"]
[BlackClock "0:00:05"]

1. d4 {[%clk 0:02:53]}  Nf6 {[%clk 0:02:59]} 2. Nf3 {[%clk 0:02:52]}  d5 {[%clk 0:02:58]} 3. Bf4 {[%clk 0:02:52]}  Bf5 {[%clk 0:02:58]} 4. c4 {[%clk 0:02:51]}  e6 {[%clk 0:02:57]} 5. Nc3 {[%clk 0:02:51]}  c6 {[%clk 0:02:56]} 6. Qb3 {[%clk 0:02:50]}  Qc8 {[%clk 0:02:51]} 7. e3 {[%clk 0:02:50]}  Be7 {[%clk 0:02:51]} 8. cxd5 {[%clk 0:02:49]}  exd5 {[%clk 0:02:50]} 9. Rc1 {[%clk 0:02:48]}  O-O {[%clk 0:02:48]} 10. Be2 {[%clk 0:02:49]}  Nbd7 {[%clk 0:02:32]} 11. h3 {[%clk 0:02:27]}  Nb6 {[%clk 0:02:31]} 12. Ne5 {[%clk 0:02:24]}  Nfd7 {[%clk 0:02:25]} 13. Nxd7 {[%clk 0:02:12]}  Qxd7 {[%clk 0:02:24]} 14. a4 {[%clk 0:02:13]}  Be6 {[%clk 0:02:22]} 15. O-O {[%clk 0:02:08]}  Rfc8 {[%clk 0:02:14]} 16. a5 {[%clk 0:02:06]}  Nc4 {[%clk 0:02:11]} 17. Qa2 {[%clk 0:01:50]}  b5 {[%clk 0:02:02]} 18. b3 {[%clk 0:01:42]}  Nd6 {[%clk 0:02:01]} 19. Nd1 {[%clk 0:01:36]}  b4 {[%clk 0:01:57]} 20. Nb2 {[%clk 0:01:33]}  Ne4 {[%clk 0:01:53]} 21. Na4 {[%clk 0:01:31]}  Qd8 {[%clk 0:01:29]} 22. Ba6 {[%clk 0:01:24]}  Qxa5 {[%clk 0:01:24]} 23. Bxc8 {[%clk 0:01:24]}  Rxc8 {[%clk 0:01:25]} 24. Qe2 {[%clk 0:01:18]}  Bd7 {[%clk 0:01:06]} 25. Rc2 {[%clk 0:01:16]}  c5 {[%clk 0:01:03]} 26. Nxc5 {[%clk 0:01:14]}  Bxc5 {[%clk 0:00:58]} 27. dxc5 {[%clk 0:01:13]}  Nc3 {[%clk 0:00:55]} 28. Qd3 {[%clk 0:00:53]}  Qxc5 {[%clk 0:00:45]} 29. Qd4 {[%clk 0:00:34]}  Qxd4 {[%clk 0:00:21]} 30. exd4 {[%clk 0:00:35]}  a5 {[%clk 0:00:22]} 31. Ra1 {[%clk 0:00:34]}  a4 {[%clk 0:00:22]} 32. bxa4 {[%clk 0:00:32]}  b3 {[%clk 0:00:22]} 33. Rb2 {[%clk 0:00:28]}  Bxa4 {[%clk 0:00:22]} 34. Bd2 {[%clk 0:00:24]}  Ne2+ {[%clk 0:00:23]} 35. Kh2 {[%clk 0:00:19]}  Rc4 {[%clk 0:00:23]} 36. Rxb3 {[%clk 0:00:17]}  h6 {[%clk 0:00:20]} 37. Rb4 {[%clk 0:00:16]}  Bc6 {[%clk 0:00:16]} 38. Rxc4 {[%clk 0:00:13]}  dxc4 {[%clk 0:00:17]} 39. Ra6 {[%clk 0:00:12]}  Be4 {[%clk 0:00:16]} 40. f3 {[%clk 0:00:10]}  Bd3 {[%clk 0:00:14]} 41. d5 {[%clk 0:00:10]}  c3 {[%clk 0:00:14]} 42. Ra8+ {[%clk 0:00:09]}  Kh7 {[%clk 0:00:14]} 43. Bxc3 {[%clk 0:00:07]}  Nxc3 {[%clk 0:00:11]} 44. Ra3 {[%clk 0:00:07]}  Nxd5 {[%clk 0:00:12]} 45. Rxd3 {[%clk 0:00:08]}  Nf4 {[%clk 0:00:12]} 46. Rd4 {[%clk 0:00:08]}  Ne6 {[%clk 0:00:12]} 47. Rc4 {[%clk 0:00:09]}  g5 {[%clk 0:00:11]} 48. h4 {[%clk 0:00:10]}  Kg6 {[%clk 0:00:11]} 49. Kg3 {[%clk 0:00:10]}  f5 {[%clk 0:00:10]} 50. Kf2 {[%clk 0:00:08]}  Kf6 {[%clk 0:00:10]} 51. Ke3 {[%clk 0:00:06]}  Ke5 {[%clk 0:00:06]} 52. Rc8 {[%clk 0:00:06]}  Nf4 {[%clk 0:00:04]} 53. hxg5 {[%clk 0:00:05]}  hxg5 {[%clk 0:00:05]} 54. g3 {[%clk 0:00:03]}  Nd5+ {[%clk 0:00:05]} 55. Ke2 {[%clk 0:00:04]}  Nf6 {[%clk 0:00:05]} 56. Rc2 {[%clk 0:00:04]}  Nd5 {[%clk 0:00:04]} 57. Kf2 {[%clk 0:00:04]}  Nb4 {[%clk 0:00:04]} 58. Rd2 {[%clk 0:00:04]}  Nd5 {[%clk 0:00:03]} 59. Ra2 {[%clk 0:00:04]}  Nb4 {[%clk 0:00:03]} 60. Ra5+ {[%clk 0:00:05]}  Nd5 {[%clk 0:00:02]} 61. Ke2 {[%clk 0:00:04]}  Kd4 {[%clk 0:00:02]} 62. Ra4+ {[%clk 0:00:04]}  Ke5 {[%clk 0:00:03]} 63. Kd3 {[%clk 0:00:03]}  Nf6 {[%clk 0:00:01]} 64. Ra5+ {[%clk 0:00:04]}  Ke6 {[%clk 0:00:02]} 65. Kd4 {[%clk 0:00:04]}  Nh5 {[%clk 0:00:02]} 66. g4 {[%clk 0:00:02]}  Ng3 {[%clk 0:00:03]} 67. gxf5+ {[%clk 0:00:02]}  Nxf5+ {[%clk 0:00:03]} 68. Ke4 {[%clk 0:00:02]}  Nd6+ {[%clk 0:00:03]} 69. Kd4 {[%clk 0:00:02]}  Nf5+ {[%clk 0:00:03]} 70. Kd3 {[%clk 0:00:02]}  Kf6 {[%clk 0:00:04]} 71. Ke4 {[%clk 0:00:02]}  Nd6+ {[%clk 0:00:04]} 72. Kd4 {[%clk 0:00:02]}  Nf5+ {[%clk 0:00:04]} 73. Kd5 {[%clk 0:00:02]}  Ng3 {[%clk 0:00:01]} 74. Kd4 {[%clk 0:00:03]}  Nf5+ {[%clk 0:00:02]} 75. Kc3 {[%clk 0:00:03]}  Nh4 {[%clk 0:00:02]} 76. Ra1 {[%clk 0:00:01]}  Nxf3 {[%clk 0:00:02]} 77. Rf1 {[%clk 0:00:02]}  g4 {[%clk 0:00:02]} 78. Kd3 {[%clk 0:00:03]}  Kf5 {[%clk 0:00:03]} 79. Ke3 {[%clk 0:00:03]}  Ke5 {[%clk 0:00:03]} 80. Rf2 {[%clk 0:00:03]}  Nd4 {[%clk 0:00:03]} 81. Rg2 {[%clk 0:00:03]}  Nf5+ {[%clk 0:00:04]} 82. Ke2 {[%clk 0:00:03]}  Kf4 {[%clk 0:00:05]} 83. Rxg4+ {[%clk 0:00:03]}  Kxg4 {[%clk 0:00:05]} 1/2-1/2


[Site "https://www.chess.com"]

[Event "Titled Tuesday Blitz February 01 B 2022"]
[White "Deac, Bogdan-Daniel"]
[Black "Kravtsiv, Martyn"]
[WhiteFideId "1226380"]
[BlackFideId "14113147"]
[WhiteElo "2646"]
[BlackElo "2694"]
[Result "0-1"]
[Round "04"]
[TimeControl "180+1"]
[Date "2022.02.01"]
[WhiteClock "0:00:47"]
[BlackClock "0:02:00"]

1. e4 {[%clk 0:03:00]}  e5 {[%clk 0:02:59]} 2. Nf3 {[%clk 0:03:00]}  Nc6 {[%clk 0:02:59]} 3. d4 {[%clk 0:03:01]}  exd4 {[%clk 0:02:58]} 4. Nxd4 {[%clk 0:03:02]}  Nf6 {[%clk 0:02:58]} 5. Nxc6 {[%clk 0:03:02]}  bxc6 {[%clk 0:02:57]} 6. e5 {[%clk 0:03:02]}  Qe7 {[%clk 0:02:57]} 7. Qe2 {[%clk 0:03:03]}  Nd5 {[%clk 0:02:57]} 8. h4 {[%clk 0:03:03]}  a5 {[%clk 0:02:53]} 9. Nd2 {[%clk 0:03:03]}  Qe6 {[%clk 0:02:45]} 10. Nf3 {[%clk 0:02:58]}  Ba6 {[%clk 0:02:41]} 11. Qe4 {[%clk 0:02:08]}  Bb4+ {[%clk 0:02:20]} 12. Kd1 {[%clk 0:01:44]}  f5 {[%clk 0:02:16]} 13. Qd4 {[%clk 0:00:47]}  c5 {[%clk 0:02:15]} 14. Ng5 {[%clk 0:00:47]}  cxd4 {[%clk 0:02:12]} 15. Nxe6 {[%clk 0:00:47]}  dxe6 {[%clk 0:02:12]} 16. a3 {[%clk 0:00:47]}  Be7 {[%clk 0:02:06]} 17. Bxa6 {[%clk 0:00:47]}  Rxa6 {[%clk 0:02:06]} 18. h5 {[%clk 0:00:48]}  Kf7 {[%clk 0:02:05]} 19. Ke2 {[%clk 0:00:47]}  c5 {[%clk 0:02:03]} 20. Kd3 {[%clk 0:00:47]}  Rc8 {[%clk 0:02:02]} 21. h6 {[%clk 0:00:47]}  g6 {[%clk 0:02:00]} 0-1


[Site "https://www.chess.com"]